fUSD/lending_fUSD_20241122
["ID","MTS","AMOUNT","RATE_DAILY","PERIOD"]
[343013109,1732283439415,-500.0,0.0009863,120]
[343013110,1732283439424,-500.0,0.0009863,120]
[343013111,1732283439434,-500.0,0.0009863,120]
[343013112,1732283439444,-500.0,0.0009863,120]
[343013113,1732283439453,-500.0,0.0009863,120]
[343013114,1732283439463,-500.0,0.0009863,120]
[343013115,1732283439475,-281.75657865,0.0009863,120]
[343013116,1732283439485,-500.0,0.0009863,120]
[343013117,1732283439495,-500.0,0.0009863,120]
[343013118,1732283439504,-500.0,0.0009863,120]
[343013119,1732283439514,-500.0,0.0009863,120]
[343013120,1732283439523,-562.64315905,0.0009863,120]
[343013121,1732283439532,-500.0,0.0009863,60]
[343013122,1732283439541,-500.0,0.0009863,120]
[343013123,1732283439551,-500.0,0.0009863,120]
[343013124,1732283439561,-500.0,0.0009863,120]
[343013125,1732283439570,-500.0,0.0009863,120]
[343013126,1732283439580,-500.0,0.0009863,120]
[343013127,1732283439589,-500.0,0.0009863,120]
[343013128,1732283439599,-618.07,0.0009863,7]
[343013129,1732283439607,-500.0,0.0009863,120]
[343013130,1732283439621,-560.09,0.0009863,120]
[343013131,1732283439630,-179.72106261,0.0009863,120]
[343013132,1732283439639,-500.0,0.0009863,120]
[343013133,1732283439649,-287.0,0.0009863,120]
[343013134,1732283439658,-561.76,0.0009863,120]
[343013135,1732283439667,-500.0,0.0009863,120]
[343013136,1732283439676,-336.57042091,0.0009863,120]
[343013137,1732283439685,-500.0,0.0009863,120]
[343013138,1732283439695,-500.0,0.0009863,120]
[343013139,1732283439704,-500.0,0.0009863,120]
[343013140,1732283439713,-500.0,0.0009863,120]
[343013141,1732283439722,-500.0,0.0009863,120]
[343013142,1732283439731,-500.0,0.0009863,120]
[343013143,1732283439740,-500.0,0.0009863,120]
[343013144,1732283439749,-500.0,0.0009863,120]
[343013145,1732283439758,-500.0,0.0009863,120]
[343013146,1732283439850,-500.0,0.0009863,120]
[343013147,1732283439859,-500.0,0.0009863,120]
[343013148,1732283439873,-500.0,0.0009863,120]
[343013149,1732283439882,-500.0,0.0009863,120]
[343013150,1732283439892,-500.0,0.0009863,120]
[343013151,1732283439901,-500.0,0.0009863,120]
[343013152,1732283439910,-500.0,0.0009863,120]
[343013153,1732283439919,-500.0,0.0009863,120]
[343013154,1732283439929,-500.0,0.0009863,120]
[343013155,1732283439938,-1064.61,0.0009863,120]
[343013156,1732283439947,-1064.61,0.0009863,120]
[343013157,1732283439957,-1064.61,0.0009863,120]
[343013158,1732283439966,-1064.61,0.0009863,120]
[343013159,1732283439975,-1064.61,0.0009863,120]
[343013160,1732283439984,-1064.61,0.0009863,120]
[343013161,1732283439994,-1064.61,0.0009863,120]
[343013162,1732283440003,-173.20461516,0.0009863,120]
[343013163,1732283440012,-500.0,0.0009863,120]
[343013164,1732283440022,-471.81,0.0009863,120]
[343013165,1732283440031,-259.06,0.0009863,120]
[343013166,1732283440040,-570.27,0.0009863,120]
[343013167,1732283440050,-500.0,0.0009863,120]
[343013168,1732283440059,-500.0,0.0009863,120]
[343013169,1732283440068,-195.32,0.0009863,120]
[343013170,1732283440077,-412.43512891,0.0009863,120]
[343013171,1732283440086,-500.0,0.0009863,120]
[343013172,1732283440096,-611.05,0.0009863,120]
[343013173,1732283440106,-500.0,0.0009863,120]
[343013174,1732283440117,-226.46,0.0009863,120]
[343013175,1732283440126,-500.0,0.0009863,120]
[343013176,1732283440136,-500.0,0.0009863,120]
[343013177,1732283440145,-500.0,0.0009863,120]
[343013178,1732283440155,-500.0,0.0009863,120]
[343013179,1732283440164,-500.0,0.0009863,120]
[343013180,1732283440174,-500.0,0.0009863,120]
[343013181,1732283440183,-500.0,0.0009863,120]
[343013182,1732283440192,-500.0,0.0009863,120]
[343013183,1732283440202,-500.0,0.0009863,120]
[343013184,1732283440211,-500.0,0.0009863,120]
[343013185,1732283440220,-521.73,0.0009863,120]
[343013186,1732283440230,-500.0,0.0009863,120]
[343013187,1732283440239,-500.0,0.0009863,120]
[343013188,1732283440248,-500.0,0.0009863,120]
[343013189,1732283440257,-224.71,0.0009863,120]
[343013190,1732283440266,-500.0,0.0009863,120]
[343013191,1732283440275,-300.81,0.0009863,120]
[343013192,1732283440285,-500.0,0.0009863,120]
[343013193,1732283440294,-557.66,0.0009863,120]
[343013194,1732283440303,-500.0,0.0009863,120]
[343013195,1732283440312,-500.0,0.0009863,120]
[343013196,1732283440321,-188.09,0.0009863,120]
[343013197,1732283440330,-500.0,0.0009863,120]
[343013198,1732283440340,-500.0,0.0009863,120]
[343013199,1732283440349,-500.0,0.0009863,120]
[343013200,1732283440359,-500.0,0.0009863,120]
[343013201,1732283440371,-500.0,0.0009863,120]
[343013202,1732283440381,-500.0,0.0009863,120]
[343013203,1732283440392,-500.0,0.0009863,120]
[343013204,1732283440401,-622.35,0.0009863,120]
[343013205,1732283440410,-500.0,0.0009863,120]
[343013206,1732283440420,-500.0,0.0009863,120]
[343013207,1732283440430,-500.0,0.0009863,120]
[343013208,1732283440439,-364.33,0.0009863,120]
[343013209,1732283440448,-500.0,0.0009863,120]
[343013210,1732283440460,-181.61859337,0.0009863,120]
[343013211,1732283440470,-500.0,0.0009863,120]
[343013212,1732283440479,-543.71442733,0.0009863,2]
[343013213,1732283440488,-500.0,0.0009863,120]
[343013214,1732283440497,-853.97,0.0009863,120]
[343013215,1732283440506,-853.97,0.0009863,120]
[343013216,1732283440516,-500.0,0.0009863,120]
[343013217,1732283440525,-500.0,0.0009863,120]
[343013218,1732283440534,-500.0,0.0009863,120]
[343013219,1732283440543,-500.0,0.0009863,120]
[343013220,1732283440553,-500.0,0.0009863,120]
[343013221,1732283440562,-500.0,0.0009863,120]
[343013222,1732283440571,-500.0,0.0009863,120]
[343013223,1732283440581,-500.0,0.0009863,120]
[343013224,1732283440591,-500.0,0.0009863,120]
[343013225,1732283440600,-500.0,0.0009863,120]
[343013226,1732283440609,-500.0,0.0009863,120]
[343013227,1732283440624,-500.0,0.0009863,120]
[343013228,1732283440633,-500.0,0.0009863,120]
[343013229,1732283440642,-500.0,0.0009863,120]
[343013230,1732283440652,-500.0,0.0009863,120]
[343013231,1732283440661,-500.0,0.0009863,120]
[343013232,1732283440670,-512.91,0.0009863,120]
[343013233,1732283440679,-500.0,0.0009863,120]
[343013234,1732283440689,-500.0,0.0009863,120]
[343013235,1732283440698,-500.0,0.0009863,120]
[343013236,1732283440708,-500.0,0.0009863,120]
[343013237,1732283440717,-295.21832613,0.0009863,120]
[343013238,1732283440727,-500.0,0.0009863,120]
[343013239,1732283440736,-500.0,0.0009863,120]
[343013240,1732283440745,-500.0,0.0009863,120]
[343013241,1732283440755,-500.0,0.0009863,120]
[343013242,1732283440765,-500.0,0.0009863,120]
[343013243,1732283440774,-194.31,0.0009863,120]
[343013244,1732283440784,-1000.0,0.0009863,120]
[343013245,1732283440793,-360.08,0.0009863,120]
[343013246,1732283440803,-500.0,0.0009863,120]
[343013247,1732283440812,-500.0,0.0009863,120]
[343013248,1732283440821,-587.12,0.0009863,120]
[343013249,1732283440831,-200.0,0.0009863,7]
[343013250,1732283440840,-500.0,0.0009863,21]
[343013251,1732283440849,-500.0,0.0009863,120]
[343013252,1732283440859,-465.77,0.0009863,21]
[343013253,1732283440872,-644.84,0.0009863,120]
[343013254,1732283440882,-176.39053544,0.0009863,120]
[343013255,1732283440891,-500.0,0.0009863,120]
[343013256,1732283440900,-505.19272277,0.0009863,120]
[343013257,1732283440909,-500.0,0.0009863,120]
[343013258,1732283440918,-500.0,0.0009863,120]
[343013259,1732283440927,-461.69318446,0.0009863,120]
[343013260,1732283440937,-222.55,0.0009863,120]
[343013261,1732283440946,-396.54779554,0.0009863,120]
[343013262,1732283440956,-500.0,0.0009863,120]
[343013263,1732283440966,-500.0,0.0009863,120]
[343013264,1732283440976,-500.0,0.0009863,120]
[343013265,1732283440986,-194.71077954,0.0009863,120]
[343013266,1732283440996,-500.0,0.0009863,7]
[343013267,1732283441006,-500.0,0.0009863,120]
[343013268,1732283441016,-500.0,0.0009863,120]
[343013269,1732283441027,-580.84,0.0009863,120]
[343013270,1732283441036,-618.53,0.0009863,120]
[343013271,1732283441045,-500.0,0.0009863,120]
[343013272,1732283441055,-500.0,0.0009863,120]
[343013273,1732283441064,-310.69347434,0.0009863,120]
[343013274,1732283441073,-500.0,0.0009863,120]
[343013275,1732283441083,-500.0,0.0009863,120]
[343013276,1732283441092,-500.0,0.0009863,120]
[343013277,1732283441101,-500.0,0.0009863,120]
[343013278,1732283441110,-500.0,0.0009863,120]
[343013279,1732283441126,-500.0,0.0009863,120]
[343013280,1732283441136,-500.0,0.0009863,120]
[343013281,1732283441145,-433.78007613,0.0009863,120]
[343013282,1732283441154,-500.0,0.0009863,120]
[343013283,1732283441163,-500.0,0.0009863,120]
[343013284,1732283441173,-396.92,0.0009863,120]
[343013285,1732283441183,-361.58724414,0.0009863,120]
[343013286,1732283441193,-551.46,0.0009863,120]
[343013287,1732283441203,-500.0,0.0009863,120]
[343013288,1732283441213,-5459.97,0.0009863,120]
[343013289,1732283441223,-646.68919789,0.0009863,120]
[343013290,1732283441232,-500.0,0.0009863,120]
[343013291,1732283441242,-574.95,0.0009863,120]
[343013292,1732283441251,-500.0,0.0009863,120]
[343013293,1732283441260,-500.0,0.0009863,120]
[343013294,1732283441270,-500.0,0.0009863,120]
[343013295,1732283441279,-592.63,0.0009863,120]
[343013296,1732283441289,-500.0,0.0009863,120]
[343013297,1732283441298,-294.57,0.0009863,120]
[343013298,1732283441308,-622.11,0.0009863,120]
[343013299,1732283441317,-500.0,0.0009863,120]
[343013300,1732283441327,-500.0,0.0009863,120]
[343013301,1732283441336,-353.40509221,0.0009863,120]
[343013302,1732283441346,-500.0,0.0009863,120]
[343013303,1732283441355,-174.56,0.0009863,120]
[343013304,1732283441366,-500.0,0.0009863,120]
[343013305,1732283441377,-500.0,0.0009863,120]
[343013306,1732283441388,-500.0,0.0009863,120]
[343013307,1732283441399,-500.0,0.0009863,120]
[343013308,1732283441409,-500.0,0.0009863,120]
[343013309,1732283441418,-316.69,0.0009863,120]
[343013310,1732283441429,-500.0,0.0009863,120]
[343013311,1732283441438,-500.0,0.0009863,120]
[343013312,1732283441447,-500.0,0.0009863,120]
[343013313,1732283441456,-500.0,0.0009863,120]
[343013314,1732283441465,-590.16069176,0.0009863,120]
[343013315,1732283441474,-500.0,0.0009863,120]
[343013316,1732283441484,-500.0,0.0009863,120]
[343013317,1732283441494,-243.35039056,0.0009863,120]
[343013318,1732283441503,-176.97,0.0009863,120]
[343013319,1732283441512,-500.0,0.0009863,120]
[343013320,1732283441522,-169.11,0.0009863,120]
[343013321,1732283441531,-500.0,0.0009863,120]
[343013322,1732283441540,-500.0,0.0009863,120]
[343013323,1732283441549,-500.0,0.0009863,120]
[343013324,1732283441559,-500.0,0.0009863,120]
[343013325,1732283441568,-500.0,0.0009863,120]
[343013326,1732283441577,-500.0,0.0009863,120]
[343013327,1732283441587,-289.91883635,0.0009863,120]
[343013328,1732283441596,-500.0,0.0009863,120]
[343013329,1732283441605,-500.0,0.0009863,120]
[343013330,1732283441615,-500.0,0.0009863,120]
[343013331,1732283441630,-500.0,0.0009863,120]
[343013332,1732283441643,-209.81032097,0.0009863,120]
[343013333,1732283441652,-500.0,0.0009863,120]
[343013334,1732283441661,-500.0,0.0009863,120]
[343013335,1732283441671,-175.09630143,0.0009863,120]
[343013336,1732283441681,-500.0,0.0009863,120]
[343013337,1732283441690,-500.0,0.0009863,120]
[343013338,1732283441700,-213.2,0.0009863,120]
[343013339,1732283441710,-500.0,0.0009863,120]
[343013340,1732283441719,-268.27,0.0009863,120]
[343013341,1732283441728,-598.32,0.0009863,120]
[343013342,1732283441737,-500.0,0.0009863,120]
[343013343,1732283441747,-500.0,0.0009863,120]
[343013344,1732283441756,-500.0,0.0009863,120]
[343013345,1732283441765,-410.69,0.0009863,120]
[343013346,1732283441774,-500.0,0.0009863,120]
[343013347,1732283441783,-500.0,0.0009863,120]
[343013348,1732283441793,-261.5,0.0009863,120]
[343013349,1732283441802,-500.0,0.0009863,120]
[343013350,1732283441811,-500.0,0.0009863,120]
[343013351,1732283441820,-500.0,0.0009863,120]
[343013352,1732283441829,-500.0,0.0009863,120]
[343013353,1732283441838,-500.0,0.0009863,120]
[343013354,1732283441857,-500.0,0.0009863,120]
[343013355,1732283441870,-500.0,0.0009863,120]
[343013356,1732283441879,-500.0,0.0009863,120]
[343013357,1732283441888,-500.0,0.0009863,120]
[343013358,1732283441898,-500.0,0.0009863,120]
[343013359,1732283441907,-500.0,0.0009863,120]
[343013360,1732283441917,-500.0,0.0009863,120]
[343013361,1732283441926,-500.0,0.0009863,120]
[343013362,1732283441935,-500.0,0.0009863,120]
[343013363,1732283441945,-500.0,0.0009863,120]
[343013364,1732283441954,-352.17296597,0.0009863,120]
[343013365,1732283441963,-220.77845,0.0009863,120]
[343013366,1732283441973,-500.0,0.0009863,120]
[343013367,1732283441982,-500.0,0.0009863,120]
[343013368,1732283441991,-500.0,0.0009863,120]
[343013369,1732283442002,-500.0,0.0009863,120]
[343013370,1732283442011,-318.64,0.0009863,120]
[343013371,1732283442021,-500.0,0.0009863,120]
[343013372,1732283442030,-295.4,0.0009863,120]
[343013373,1732283442040,-500.0,0.0009863,120]
[343013374,1732283442049,-500.0,0.0009863,120]
[343013375,1732283442059,-500.0,0.0009863,120]
[343013376,1732283442068,-500.0,0.0009863,120]
[343013377,1732283442077,-500.0,0.0009863,120]
[343013378,1732283442087,-500.0,0.0009863,120]
[343013379,1732283442096,-500.0,0.0009863,120]
[343013380,1732283442106,-500.0,0.0009863,120]
[343013381,1732283442118,-500.0,0.0009863,120]
[343013382,1732283442127,-241.63632125,0.0009863,120]
[343013383,1732283442137,-500.0,0.0009863,120]
[343013384,1732283442146,-500.0,0.0009863,120]
[343013385,1732283442155,-500.0,0.0009863,120]
[343013386,1732283442165,-218.89,0.0009863,120]
[343013387,1732283442174,-500.0,0.0009863,120]
[343013388,1732283442183,-500.0,0.0009863,120]
[343013391,1732283442193,-500.0,0.0009863,120]
[343013393,1732283442202,-500.0,0.0009863,120]
[343013395,1732283442211,-500.0,0.0009863,120]
[343013397,1732283442220,-362.92,0.0009863,120]
[343013399,1732283442229,-500.0,0.0009863,120]
[343013400,1732283442238,-500.0,0.0009863,120]
[343013401,1732283442248,-500.0,0.0009863,120]
[343013402,1732283442257,-500.0,0.0009863,120]
[343013403,1732283442267,-201.88,0.0009863,120]
[343013404,1732283442276,-500.0,0.0009863,120]
[343013405,1732283442285,-500.0,0.0009863,120]
[343013406,1732283442295,-333.47511402,0.0009863,120]
[343013407,1732283442408,-638.45,0.0009863,120]
[343013408,1732283442418,-638.45,0.0009863,120]
[343013409,1732283442427,-638.45,0.0009863,120]
[343013410,1732283442438,-638.45,0.0009863,120]
[343013411,1732283442447,-638.45,0.0009863,120]
[343013412,1732283442456,-638.45,0.0009863,120]
[343013413,1732283442465,-638.45,0.0009863,120]
[343013414,1732283442474,-500.0,0.0009863,120]
[343013415,1732283442483,-500.0,0.0009863,120]
[343013416,1732283442496,-429.165174,0.0009863,120]
[343013417,1732283442505,-500.0,0.0009863,120]
[343013418,1732283442514,-514.00402539,0.0009863,120]
[343013419,1732283442523,-500.0,0.0009863,120]
[343013420,1732283442533,-579.7,0.0009863,120]
[343013421,1732283442542,-500.0,0.0009863,2]
[343013422,1732283442552,-499.025475,0.0009863,120]
[343013423,1732283442561,-1000.0,0.000987,36]
[343013424,1732283442571,-2241.68944316,0.00098744,15]
[343013425,1732283442580,-34213.5857831,0.00098789,10]
[343013426,1732283442589,-769.66,0.00098789,120]
[343013427,1732283442598,-500.0,0.00098789,120]
[343013428,1732283442607,-500.0,0.00098789,120]
[343013429,1732283442620,-500.0,0.00098789,120]
[343013430,1732283442629,-500.0,0.00098789,120]
[343013431,1732283442638,-500.0,0.00098789,120]
[343013432,1732283442647,-500.0,0.00098789,120]
[343013433,1732283442657,-500.0,0.00098789,120]
[343013434,1732283442666,-1064.61,0.00098789,120]
[343013435,1732283442675,-500.0,0.00098789,120]
[343013436,1732283442684,-500.0,0.00098789,120]
[343013437,1732283442695,-638.45,0.00098789,120]
[343013438,1732283442704,-5100.0,0.000988,35]
[343013439,1732283442713,-2000.0,0.000988,36]
[343013440,1732283442722,-166.82955006,0.0009888,88]
[343013441,1732283442731,-728.33,0.00098889,120]
[343013442,1732283442740,-4416.7872,0.000989,120]
[343013443,1732283442749,-3000.0,0.000989,36]
[343013444,1732283442759,-157.439,0.0009894,120]
[343013445,1732283442768,-40983.6065574,0.0009895,16]
[343013446,1732283442777,-34213.5857831,0.00098951,10]
[343013447,1732283442786,-500.0,0.0009896,120]
[343013448,1732283442795,-853.97,0.0009896,120]
[343013449,1732283442804,-422.04,0.0009896,120]
[343013450,1732283442814,-610.49,0.0009896,120]
[343013451,1732283442823,-353.3935319,0.0009896,120]
[343013452,1732283442832,-500.0,0.0009896,120]
[343013453,1732283442842,-500.05034727,0.0009896,120]
[343013454,1732283442851,-609.68264558,0.0009896,120]
[343013455,1732283442860,-647.39,0.0009896,120]
[343013456,1732283442873,-315.34986941,0.0009896,120]
[343013457,1732283442883,-407.82,0.0009896,120]
[343013458,1732283442893,-214.61,0.0009896,120]
[343013459,1732283442902,-156.44,0.0009896,120]
[343013460,1732283442912,-500.0,0.0009896,120]
[343013461,1732283442921,-40983.6065574,0.0009896,16]
[343013462,1732283442930,-34213.5857831,0.0009896,10]
[343013463,1732283442940,-40983.6065574,0.0009897,16]
[343013464,1732283442950,-68427.1715662,0.0009897,10]
[343013465,1732283442959,-40983.6065574,0.00098979,16]
[343013466,1732283442968,-211.16,0.00098979,120]
[343013467,1732283442978,-188.18,0.00098979,120]
[343013468,1732283442987,-489.42,0.00098979,120]
[343013469,1732283442997,-645.83,0.00098979,120]
[343013470,1732283443006,-500.0,0.00098979,120]
[343013471,1732283443016,-853.97,0.00098979,120]
[343013472,1732283443025,-500.0,0.00098979,120]
[343013473,1732283443035,-545.69,0.00098979,120]
[343013474,1732283443045,-453.26197771,0.00098979,120]
[343013475,1732283443054,-500.0,0.00098979,120]
[343013476,1732283443064,-500.0,0.00098979,120]
[343013477,1732283443074,-500.0,0.00098979,120]
[343013479,1732283443084,-500.0,0.00098979,120]
[343013480,1732283443094,-998.0,0.0009898,75]
[343013481,1732283443104,-122950.819672,0.0009898,16]
[343013482,1732283443114,-102640.757349,0.0009898,10]
[343013483,1732283443126,-150.0,0.00098986,120]
[343013484,1732283443136,-500.0,0.00098988,120]
[343013485,1732283443146,-853.97,0.00098988,120]
[343013486,1732283443156,-500.0,0.00098988,120]
[343013488,1732283443165,-34213.5857831,0.00098989,10]
[343013489,1732283443175,-1000.0,0.00098989,120]
[343013491,1732283443189,-543.41,0.00098989,120]
[343013493,1732283443199,-645.83,0.00098989,120]
[343013496,1732283443208,-645.83,0.00098989,120]
[343013498,1732283443218,-500.0,0.00098989,120]
[343013500,1732283443228,-500.0,0.00098989,120]
[343013503,1732283443237,-500.0,0.00098989,120]
[343013505,1732283443247,-500.0,0.00098989,120]
[343013507,1732283443255,-206.95017721,0.00098989,120]
[343013509,1732283443266,-616.08,0.00098989,120]
[343013511,1732283443275,-1064.61,0.00098989,120]
[343013513,1732283443285,-500.0,0.00098989,120]
[343013515,1732283443295,-500.0,0.00098989,120]
[343013516,1732283443305,-853.97,0.00098989,120]
[343013517,1732283443315,-853.97,0.00098989,120]
[343013518,1732283443324,-500.0,0.00098989,120]
[343013519,1732283443333,-500.0,0.00098989,120]
[343013520,1732283443343,-188.32,0.00098989,120]
[343013521,1732283443353,-500.0,0.00098989,7]
[343013522,1732283443363,-500.0,0.00098989,120]
[343013523,1732283443375,-500.0,0.00098989,120]
[343013524,1732283443385,-5459.97,0.00098989,120]
[343013525,1732283443395,-352.9728922,0.00098989,120]
[343013526,1732283443407,-500.0,0.00098989,120]
[343013527,1732283443417,-500.0,0.00098989,120]
[343013528,1732283443427,-500.0,0.00098989,120]
[343013529,1732283443436,-638.45,0.00098989,120]
[343013530,1732283443445,-500.0,0.00098989,120]
[343013531,1732283443454,-769.66,0.0009899,120]
[343013532,1732283443463,-500.0,0.0009899,120]
[343013533,1732283443472,-500.0,0.0009899,120]
[343013534,1732283443482,-500.0,0.0009899,120]
[343013535,1732283443491,-500.0,0.0009899,120]
[343013536,1732283443501,-500.0,0.0009899,120]
[343013537,1732283443510,-145511.55958674,0.0009899,16]
[343013538,1732283443578,-534.982998,0.0009899,16]
[343013539,1732283443589,-6303.41369673,0.0009899,16]
[343013540,1732283443693,-1857.71702042,0.0009899,16]
[343013541,1732283443706,-845.24735,0.0009899,16]
[343013542,1732283443737,-113.60197719,0.0009899,16]
[343013543,1732283443749,-49751.51015792,0.0009899,16]
[343013544,1732283443758,-239495.100482,0.0009899,10]
[343013545,1732283443768,-645.83,0.00098998,120]
[343013546,1732283443778,-578.53000157,0.00098999,120]
[343013547,1732283443787,-916.20903915,0.00098999,2]
[343013548,1732283443799,-645.83,0.00098999,120]
[343013549,1732283443809,-645.83,0.00098999,120]
[343013550,1732283443818,-769.66,0.00098999,120]
[343013551,1732283443827,-769.66,0.00098999,120]
[343013552,1732283443836,-500.0,0.00098999,120]
[343013553,1732283443845,-235.7028708,0.00098999,120]
[343013554,1732283443855,-500.0,0.00098999,120]
[343013555,1732283443864,-500.0,0.00098999,120]
[343013556,1732283443880,-500.0,0.00098999,120]
[343013557,1732283443890,-500.0,0.00098999,120]
[343013558,1732283443900,-500.0,0.00098999,120]
[343013559,1732283443909,-500.0,0.00098999,120]
[343013560,1732283443919,-500.0,0.00098999,120]
[343013561,1732283443929,-500.0,0.00098999,120]
[343013563,1732283443939,-500.0,0.00098999,120]
[343013565,1732283443949,-500.0,0.00098999,120]
[343013566,1732283443958,-541.58585145,0.00098999,120]
[343013568,1732283443968,-500.0,0.00098999,120]
[343013571,1732283443978,-500.0,0.00098999,120]
[343013573,1732283443988,-1064.61,0.00098999,120]
[343013574,1732283443997,-1064.61,0.00098999,120]
[343013576,1732283444007,-500.0,0.00098999,120]
[343013578,1732283444017,-500.0,0.00098999,120]
[343013580,1732283444027,-500.0,0.00098999,120]
[343013583,1732283444037,-500.0,0.00098999,120]
[343013584,1732283444048,-853.97,0.00098999,120]
[343013587,1732283444058,-853.97,0.00098999,120]
[343013589,1732283444067,-500.0,0.00098999,120]
[343013591,1732283444077,-500.0,0.00098999,120]
[343013593,1732283444086,-155.96,0.00098999,7]
[343013595,1732283444095,-500.0,0.00098999,120]
[343013597,1732283444105,-500.0,0.00098999,120]
[343013599,1732283444115,-496.67,0.00098999,120]
[343013601,1732283444128,-5459.97,0.00098999,120]
[343013603,1732283444138,-5459.97,0.00098999,120]
[343013605,1732283444147,-500.0,0.00098999,120]
[343013607,1732283444156,-500.0,0.00098999,120]
[343013609,1732283444166,-500.0,0.00098999,120]
[343013611,1732283444175,-500.0,0.00098999,120]
[343013613,1732283444184,-178.28311,0.00098999,120]
[343013615,1732283444194,-638.45,0.00098999,120]
[343013616,1732283444203,-638.45,0.00098999,120]
[343013617,1732283444213,-500.0,0.00098999,120]
[343013618,1732283444222,-463.91939691,0.00098999,120]
[343013619,1732283444231,-2110382.68212212,0.00099,45]
[343013620,1732283444243,-1955.85208313,0.00099,45]
[343013621,1732283444254,-154402.28502934,0.00099,45]
[343013622,1732283444265,-97674.24246812,0.00099,45]
[343013623,1732283444276,-2020.0,0.00099,45]
[343013624,1732283444287,-13013.8,0.00099,45]
[343013625,1732283444298,-2934.3858339,0.00099,45]
[343013626,1732283444309,-578.5393741,0.00099,45]
[343013627,1732283444320,-420000.0,0.00099,45]
[343013628,1732283444331,-9111.784,0.00099,45]
[343013629,1732283444342,-5226.31360826,0.00099,45]
[343013630,1732283444354,-400.1149,0.00099,45]
[343013631,1732283444365,-31778.9362552,0.00099,45]
[343013632,1732283444383,-1976.26485806,0.00099,45]
[343013633,1732283444419,-22.87880964,0.0009863,120]
[343013634,1732283444432,-529.67119036,0.0009863,120]
[343013635,1732283444441,-52.8363418,0.00099,45]
[343013636,1732283444453,-2068.63438604,0.00099,45]
[343013637,1732283444466,-2395.98,0.00099,45]
[343013638,1732283444478,-5932.98700399,0.00099,45]
[343013639,1732283444540,-265.38431681,0.00098629,120]
[343013640,1732283444551,-5.01256067,0.0009863,120]
[343013641,1732283444562,-547.53743933,0.0009863,120]
[343013642,1732283444571,-507.74256009,0.0009896,120]
[343013643,1732283444583,-44.80743991,0.0009896,120]
[343013644,1732283444592,-552.55,0.00098979,120]
[343013645,1732283444602,-552.55,0.00098988,120]
[343013646,1732283444611,-53.09256163,0.00098989,120]
[343013647,1732283444626,-282.13839987,0.00098989,120]
[343013648,1732283444637,-217.3190385,0.00098989,120]
[343013649,1732283444647,-552.55,0.00098989,120]
[343013650,1732283444657,-552.55,0.00098999,120]
[343013651,1732283444667,-552.55,0.00098999,120]
[343013652,1732283444676,-10626.92457392,0.00099,45]
[343013653,1732283444776,-2263.64013101,0.00099,45]
[343013654,1732283444788,-5776.523833,0.00099,45]
[343013655,1732283444799,-44005.16834045,0.00099,45]
[343013656,1732283444811,-507.1222459,0.00099,45]
[343013657,1732283444822,-4719.42,0.00099,45]